{"text_format":"3","workbook":"xlsx","n_sheets":1,"sheets":["Handleliste"],"not_rendered":{"images":1,"defined_names":3},"read":"whole","date_system":"1900"}

{"sheet":"Handleliste","index":0,"n_rows":31,"n_cols":8,"rows_kept":31,"merged":[[1,1,1,2]]}
[null,"Handleliste"]
[null,"DATO"]
[null,"Ferdig?","Vare","Kategori","Antall","Pris","Utvidet pris","Merkevare/kommentarer"]
[null,null,"Appelsiner","Frukt og grønt",null,null,{"$f":"IFERROR(SUM(Handleliste[Antall]*Handleliste[Pris]), \"\")","v":{"v":0,"d":"kr 0.00"}}]
[null,null,"Epler","Frukt og grønt",null,null,{"$f":"IFERROR(SUM(Handleliste[Antall]*Handleliste[Pris]), \"\")","v":{"v":0,"d":"kr 0.00"}}]
[null,null,"Bananer","Frukt og grønt",null,null,{"$f":"IFERROR(SUM(Handleliste[Antall]*Handleliste[Pris]), \"\")","v":{"v":0,"d":"kr 0.00"}}]
[null,null,"Salat","Frukt og grønt",null,null,{"$f":"IFERROR(SUM(Handleliste[Antall]*Handleliste[Pris]), \"\")","v":{"v":0,"d":"kr 0.00"}}]
[null,null,"Tomater","Frukt og grønt",null,null,{"$f":"IFERROR(SUM(Handleliste[Antall]*Handleliste[Pris]), \"\")","v":{"v":0,"d":"kr 0.00"}},"  "]
[null,null,"Melk ","Melk og smør",null,null,{"$f":"IFERROR(SUM(Handleliste[Antall]*Handleliste[Pris]), \"\")","v":{"v":0,"d":"kr 0.00"}}]
[null,null,"Ost","Melk og smør",null,null,{"$f":"IFERROR(SUM(Handleliste[Antall]*Handleliste[Pris]), \"\")","v":{"v":0,"d":"kr 0.00"}}]
[null,null,"Egg","Melk og smør",null,null,{"$f":"IFERROR(SUM(Handleliste[Antall]*Handleliste[Pris]), \"\")","v":{"v":0,"d":"kr 0.00"}}]
[null,null,"Cottage cheese","Melk og smør",null,null,{"$f":"IFERROR(SUM(Handleliste[Antall]*Handleliste[Pris]), \"\")","v":{"v":0,"d":"kr 0.00"}}]
[null,null,"Storfekjøtt","Kjøtt",null,null,{"$f":"IFERROR(SUM(Handleliste[Antall]*Handleliste[Pris]), \"\")","v":{"v":0,"d":"kr 0.00"}}]
[null,null,"Fjærkre","Kjøtt",null,null,{"$f":"IFERROR(SUM(Handleliste[Antall]*Handleliste[Pris]), \"\")","v":{"v":0,"d":"kr 0.00"}}]
[null,null,"Skinke","Kjøtt",null,null,{"$f":"IFERROR(SUM(Handleliste[Antall]*Handleliste[Pris]), \"\")","v":{"v":0,"d":"kr 0.00"}}]
[null,null,"Juice","Drikke",null,null,{"$f":"IFERROR(SUM(Handleliste[Antall]*Handleliste[Pris]), \"\")","v":{"v":0,"d":"kr 0.00"}}]
[null,null,"Kaffe","Drikke",null,null,{"$f":"IFERROR(SUM(Handleliste[Antall]*Handleliste[Pris]), \"\")","v":{"v":0,"d":"kr 0.00"}}]
[null,null,"Te","Drikke",null,null,{"$f":"IFERROR(SUM(Handleliste[Antall]*Handleliste[Pris]), \"\")","v":{"v":0,"d":"kr 0.00"}}]
[null,null,"Vann","Drikke",null,null,{"$f":"IFERROR(SUM(Handleliste[Antall]*Handleliste[Pris]), \"\")","v":{"v":0,"d":"kr 0.00"}}]
[null,null,"Nudler","Pasta",null,null,{"$f":"IFERROR(SUM(Handleliste[Antall]*Handleliste[Pris]), \"\")","v":{"v":0,"d":"kr 0.00"}}]
[null,null,"Ris","Pasta",null,null,{"$f":"IFERROR(SUM(Handleliste[Antall]*Handleliste[Pris]), \"\")","v":{"v":0,"d":"kr 0.00"}}]
[null,null,"Hermetikk","Suppe",null,null,{"$f":"IFERROR(SUM(Handleliste[Antall]*Handleliste[Pris]), \"\")","v":{"v":0,"d":"kr 0.00"}}]
[null,null,"Pulverblanding","Suppe",null,null,{"$f":"IFERROR(SUM(Handleliste[Antall]*Handleliste[Pris]), \"\")","v":{"v":0,"d":"kr 0.00"}}]
[null,null,"Brød","Bakeri",null,null,{"$f":"IFERROR(SUM(Handleliste[Antall]*Handleliste[Pris]), \"\")","v":{"v":0,"d":"kr 0.00"}}]
[null,null,"Potetgull","Snacks",null,null,{"$f":"IFERROR(SUM(Handleliste[Antall]*Handleliste[Pris]), \"\")","v":{"v":0,"d":"kr 0.00"}}]
[null,null,"Saltkringler","Snacks",null,null,{"$f":"IFERROR(SUM(Handleliste[Antall]*Handleliste[Pris]), \"\")","v":{"v":0,"d":"kr 0.00"}}]
[null,null,"Iskrem","Snacks",null,null,{"$f":"IFERROR(SUM(Handleliste[Antall]*Handleliste[Pris]), \"\")","v":{"v":0,"d":"kr 0.00"}}]
[null,null,"Småkaker","Snacks",null,null,{"$f":"IFERROR(SUM(Handleliste[Antall]*Handleliste[Pris]), \"\")","v":{"v":0,"d":"kr 0.00"}}]
[null,null,"Papirtallerkener","Utstyr",null,null,{"$f":"IFERROR(SUM(Handleliste[Antall]*Handleliste[Pris]), \"\")","v":{"v":0,"d":"kr 0.00"}}]
[null,null,"Servietter","Utstyr",null,null,{"$f":"IFERROR(SUM(Handleliste[Antall]*Handleliste[Pris]), \"\")","v":{"v":0,"d":"kr 0.00"}}]
[{"$nulls":6},{"$f":"SUBTOTAL(109,Handleliste[Utvidet pris])","v":{"v":0,"d":"kr 0.00"}}]